[Event "Live Chess"]
[Site "Chess.com"]
[Date "2021.02.28"]
[Round "-"]
[White "Nield, Christopher"]
[Black "Breslin, Daniel"]
[Result "1/2-1/2"]
[BlackElo "1590"]
[CurrentPosition "8/p1pQ2k1/1p3pp1/4p3/1PP5/q5P1/5PKP/8 b - -"]
[ECO "A07"]
[ECOUrl "https://www.chess.com/openings/Kings-Indian-Attack-2...Nc6"]
[EndDate "2021.02.28"]
[EndTime "11:34:25"]
[Link "https://www.chess.com/live/game/8249022235"]
[StartTime "10:59:40"]
[Termination "Game drawn by agreement"]
[TimeControl "1500+10"]
[Timezone "UTC"]
[UTCDate "2021.02.28"]
[UTCTime "10:59:40"]
[WhiteElo "1422"]

1. Nf3 { [%clk 0:25:10] } 1... d5 { [%clk 0:25:10] } 2. g3 { [%clk 0:25:15.6] } 2... Nc6 { [%clk 0:25:12.3] } 3. d4 { [%clk 0:25:21.1] } 3... Nf6 { [%clk 0:25:18.9] } 4. Nc3 { [%clk 0:25:15.2] } 4... Bf5 { [%clk 0:25:23.5] } 5. Bg2 { [%clk 0:25:12.4] } 5... e6 { [%clk 0:25:31.4] } 6. O-O { [%clk 0:25:13.8] } 6... Be7 { [%clk 0:25:32.6] } 7. a3 { [%clk 0:24:46.2] } 7... O-O { [%clk 0:25:38.1] } 8. Bf4 { [%clk 0:23:50.5] } 8... Bd6 { [%clk 0:25:42.9] } 9. Ne5 { [%clk 0:22:52] } 9... Bxe5 { [%clk 0:25:42.5] } 10. Bxe5 { [%clk 0:22:54.2] } 10... Nxe5 { [%clk 0:25:44.4] } 11. dxe5 { [%clk 0:23:02.5] } 11... Nd7 { [%clk 0:25:53.1] } 12. e4 { [%clk 0:21:19.6] } 12... dxe4 { [%clk 0:25:47.9] } 13. Nxe4 { [%clk 0:19:26] } 13... Bxe4 { [%clk 0:25:37.8] } 14. Bxe4 { [%clk 0:19:29.1] } 14... Nxe5 { [%clk 0:24:31.3] } 15. Bxh7+ { [%clk 0:18:53.5] } 15... Kxh7 { [%clk 0:22:37.9] } 16. Qh5+ { [%clk 0:19:00] } 16... Kg8 { [%clk 0:22:44.9] } 17. Qxe5 { [%clk 0:19:09] } 17... Qe7 { [%clk 0:22:30.2] } 18. Rad1 { [%clk 0:18:12.3] } 18... Rad8 { [%clk 0:22:26] } 19. b4 { [%clk 0:16:55.4] } 19... Rd6 { [%clk 0:22:06.9] } 20. Rd4 { [%clk 0:16:05] } 20... Rfd8 { [%clk 0:22:05.5] } 21. Rfd1 { [%clk 0:16:07.5] } 21... f6 { [%clk 0:22:07.3] } 22. Qc5 { [%clk 0:14:50.9] } 22... b6 { [%clk 0:21:39.6] } 23. Qc3 { [%clk 0:14:46] } 23... Rxd4 { [%clk 0:19:17.2] } 24. Rxd4 { [%clk 0:14:52.8] } 24... Rxd4 { [%clk 0:19:25] } 25. Qxd4 { [%clk 0:15:02.2] } 25... e5 { [%clk 0:19:28.5] } 26. Qd5+ { [%clk 0:14:16.5] } 26... Kh7 { [%clk 0:19:24.9] } 27. Qe4+ { [%clk 0:13:40] } 27... g6 { [%clk 0:18:45.4] } 28. Qa8 { [%clk 0:13:07.5] } 28... Qd7 { [%clk 0:18:47.3] } 29. c4 { [%clk 0:12:41.5] } 29... Qd4 { [%clk 0:18:02.7] } 30. Qc6 { [%clk 0:12:11.3] } 30... Qa1+ { [%clk 0:17:50.3] } 31. Kg2 { [%clk 0:12:00] } 31... Qxa3 { [%clk 0:17:53.7] } 32. Qd7+ { [%clk 0:11:12.9] } 32... Kh6 { [%clk 0:17:18.1] } 33. Qh3+ { [%clk 0:09:58.4] } 33... Kg7 { [%clk 0:17:16] } 34. Qd7+ { [%clk 0:10:01.8] } 1/2-1/2

[Event "Live Chess"]
[Site "Chess.com"]
[Date "2021.02.28"]
[Round "-"]
[White "Larkin, John"]
[Black "Cotton, Chris"]
[Result "1-0"]
[BlackElo "1101"]
[CurrentPosition "8/p3r2k/3Rb1pp/8/2P1QP1q/7P/PP2B1P1/5RK1 b - -"]
[ECO "E90"]
[ECOUrl "https://www.chess.com/openings/Kings-Indian-Defense-Zinnowitz-Variation-6...h6"]
[EndDate "2021.02.28"]
[EndTime "11:59:17"]
[Link "https://www.chess.com/live/game/8249022993"]
[StartTime "10:59:46"]
[Termination "Cynac won by resignation"]
[TimeControl "1500+10"]
[Timezone "UTC"]
[UTCDate "2021.02.28"]
[UTCTime "10:59:46"]
[WhiteElo "1682"]

1. d4 { [%clk 0:25:10] } 1... Nf6 { [%clk 0:25:10] } 2. c4 { [%clk 0:25:17.3] } 2... g6 { [%clk 0:25:17] } 3. Nc3 { [%clk 0:25:26.1] } 3... Bg7 { [%clk 0:25:21.4] } 4. e4 { [%clk 0:25:34.9] } 4... d6 { [%clk 0:25:27.2] } 5. Nf3 { [%clk 0:25:43.6] } 5... O-O { [%clk 0:25:24] } 6. Bg5 { [%clk 0:25:51.4] } 6... h6 { [%clk 0:25:06.6] } 7. Be3 { [%clk 0:25:58.4] } 7... Ng4 { [%clk 0:23:58.4] } 8. Bd2 { [%clk 0:25:48.2] } 8... e5 { [%clk 0:23:21.6] } 9. d5 { [%clk 0:25:49.5] } 9... f5 { [%clk 0:22:41.8] } 10. exf5 { [%clk 0:24:51.4] } 10... Bxf5 { [%clk 0:22:17.5] } 11. h3 { [%clk 0:24:10.7] } 11... Nf6 { [%clk 0:19:49.9] } 12. Be3 { [%clk 0:19:45.3] } 12... e4 { [%clk 0:18:16.7] } 13. Nd4 { [%clk 0:18:34.9] } 13... c5 { [%clk 0:16:10] } 14. dxc6 { [%clk 0:17:04.3] } 14... bxc6 { [%clk 0:15:20.1] } 15. Be2 { [%clk 0:14:16.4] } 15... c5 { [%clk 0:14:01.2] } 16. Ndb5 { [%clk 0:13:41.1] } 16... Ne8 { [%clk 0:12:16.7] } 17. Qd5+ { [%clk 0:12:24.3] } 17... Rf7 { [%clk 0:09:13] } 18. Qxa8 { [%clk 0:06:23] } 18... Nc7 { [%clk 0:07:52.9] } 19. Nxc7 { [%clk 0:06:02.5] } 19... Qxc7 { [%clk 0:07:23.3] } 20. Qd5 { [%clk 0:06:03.9] } 20... Nc6 { [%clk 0:06:53.5] } 21. Qd2 { [%clk 0:04:48.8] } 21... Nb4 { [%clk 0:05:12.7] } 22. O-O { [%clk 0:04:15.3] } 22... Be5 { [%clk 0:03:15.3] } 23. Nd5 { [%clk 0:03:11.3] } 23... Nxd5 { [%clk 0:03:04.6] } 24. Qxd5 { [%clk 0:03:12.7] } 24... Qe7 { [%clk 0:02:44.3] } 25. Rab1 { [%clk 0:01:39] } 25... Kg7 { [%clk 0:02:17.8] } 26. f4 { [%clk 0:01:16.4] } 26... Bd4 { [%clk 0:01:57.6] } 27. Bxd4+ { [%clk 0:01:15.8] } 27... cxd4 { [%clk 0:01:51.6] } 28. Qxd4+ { [%clk 0:01:24] } 28... Kh7 { [%clk 0:01:36] } 29. Qe3 { [%clk 0:01:32.3] } 29... Qh4 { [%clk 0:00:42.6] } 30. Rbd1 { [%clk 0:01:15.3] } 30... Be6 { [%clk 0:00:34.9] } 31. Rxd6 { [%clk 0:01:03] } 31... Re7 { [%clk 0:00:28.5] } 32. Qxe4 { [%clk 0:00:58.3] } 1-0

[Event "Live Chess"]
[Site "Chess.com"]
[Date "2021.02.28"]
[Round "-"]
[White "Callison, J Stuart"]
[Black "Thomson, Neil"]
[Result "1-0"]
[BlackElo "1576"]
[CurrentPosition "8/8/4p3/8/Pp4k1/1P4bQ/7P/5R1K b - -"]
[ECO "A40"]
[ECOUrl "https://www.chess.com/openings/Modern-Defense-with-1-d4"]
[EndDate "2021.02.28"]
[EndTime "15:00:50"]
[Link "https://www.chess.com/live/game/8259786617"]
[StartTime "13:57:02"]
[Termination "stuartcallison won by resignation"]
[TimeControl "1500+10"]
[Timezone "UTC"]
[UTCDate "2021.02.28"]
[UTCTime "13:57:02"]
[WhiteElo "1699"]

1. d4 { [%clk 0:25:10] } 1... g6 { [%clk 0:25:10] } 2. Bf4 { [%clk 0:25:04.4] } 2... Bg7 { [%clk 0:25:16.6] } 3. Nc3 { [%clk 0:24:53.9] } 3... c5 { [%clk 0:25:17] } 4. dxc5 { [%clk 0:23:00] } 4... Na6 { [%clk 0:24:19.5] } 5. Qd2 { [%clk 0:22:38.1] } 5... Nxc5 { [%clk 0:24:15] } 6. e4 { [%clk 0:22:07.9] } 6... Ne6 { [%clk 0:22:53.6] } 7. Be3 { [%clk 0:21:41.5] } 7... Nf6 { [%clk 0:22:32.4] } 8. f3 { [%clk 0:21:40.9] } 8... d6 { [%clk 0:22:24.5] } 9. Bb5+ { [%clk 0:20:45.7] } 9... Bd7 { [%clk 0:22:13.2] } 10. Bxd7+ { [%clk 0:20:08.5] } 10... Nxd7 { [%clk 0:21:48.3] } 11. Nge2 { [%clk 0:19:15.8] } 11... Ne5 { [%clk 0:21:19] } 12. b3 { [%clk 0:18:27.9] } 12... O-O { [%clk 0:21:17.8] } 13. O-O { [%clk 0:18:05.9] } 13... Rc8 { [%clk 0:20:16.2] } 14. Rad1 { [%clk 0:17:25] } 14... Kh8 { [%clk 0:16:17.2] } 15. Nd5 { [%clk 0:16:33.6] } 15... a6 { [%clk 0:14:54.1] } 16. c4 { [%clk 0:13:03.9] } 16... b5 { [%clk 0:13:09.5] } 17. cxb5 { [%clk 0:12:03.8] } 17... axb5 { [%clk 0:13:19.4] } 18. Rc1 { [%clk 0:12:09] } 18... Nc5 { [%clk 0:12:00.7] } 19. Nd4 { [%clk 0:11:52.9] } 19... e6 { [%clk 0:09:48.6] } 20. Nb4 { [%clk 0:11:29.8] } 20... Qd7 { [%clk 0:09:08.1] } 21. Rfd1 { [%clk 0:09:47.7] } 21... f5 { [%clk 0:07:41.4] } 22. exf5 { [%clk 0:09:15.9] } 22... gxf5 { [%clk 0:07:44.4] } 23. Qe2 { [%clk 0:08:58.7] } 23... f4 { [%clk 0:07:01.8] } 24. Bf2 { [%clk 0:08:27] } 24... Rb8 { [%clk 0:06:54] } 25. Ndc2 { [%clk 0:07:30.5] } 25... Rf5 { [%clk 0:05:38.2] } 26. Bxc5 { [%clk 0:06:50.6] } 26... Nxf3+ { [%clk 0:05:20.9] } 27. Qxf3 { [%clk 0:06:47.5] } 27... Rxc5 { [%clk 0:05:29.7] } 28. Qxf4 { [%clk 0:06:22] } 28... Be5 { [%clk 0:05:29.6] } 29. Qe3 { [%clk 0:05:52.5] } 29... Qg7 { [%clk 0:04:58.9] } 30. Ne1 { [%clk 0:05:37.1] } 30... Rxc1 { [%clk 0:04:12.2] } 31. Qxc1 { [%clk 0:05:19.5] } 31... Bd4+ { [%clk 0:04:21] } 32. Kh1 { [%clk 0:04:58] } 32... Rg8 { [%clk 0:03:29.8] } 33. Qd2 { [%clk 0:04:21.6] } 33... Bc3 { [%clk 0:03:32.2] } 34. Qxd6 { [%clk 0:03:52.3] } 34... Bxe1 { [%clk 0:03:33.3] } 35. g3 { [%clk 0:03:50.9] } 35... Bc3 { [%clk 0:02:52.1] } 36. Nc6 { [%clk 0:03:49] } 36... Qg4 { [%clk 0:01:09.3] } 37. Qd3 { [%clk 0:03:38.6] } 37... b4 { [%clk 0:00:56.2] } 38. a3 { [%clk 0:03:15.9] } 38... Rc8 { [%clk 0:00:25.1] } 39. Rf1 { [%clk 0:02:58.4] } 39... Rxc6 { [%clk 0:00:14] } 40. Qd8+ { [%clk 0:03:04.7] } 40... Kg7 { [%clk 0:00:22.2] } 41. Qd7+ { [%clk 0:03:08.4] } 41... Kh6 { [%clk 0:00:24.1] } 42. Qxc6 { [%clk 0:03:13.9] } 42... Be5 { [%clk 0:00:26.1] } 43. a4 { [%clk 0:03:00.2] } 43... Qh3 { [%clk 0:00:28.7] } 44. Qf3 { [%clk 0:02:52.4] } 44... Bxg3 { [%clk 0:00:23.9] } 45. Qf6+ { [%clk 0:02:27.5] } 45... Kh5 { [%clk 0:00:29.9] } 46. Qf7+ { [%clk 0:02:26.1] } 46... Kg5 { [%clk 0:00:19.6] } 47. Qe7+ { [%clk 0:02:20.4] } 47... Kh5 { [%clk 0:00:17.6] } 48. Qxh7+ { [%clk 0:02:21.1] } 48... Kg4 { [%clk 0:00:24.8] } 49. Qxh3+ { [%clk 0:02:23.6] } 1-0

[Event "Live Chess"]
[Site "Chess.com"]
[Date "2021.02.28"]
[Round "-"]
[White "Murdochy, Shivan"]
[Black "Burt, J Mel"]
[Result "1/2-1/2"]
[BlackElo "1493"]
[CurrentPosition "8/5p2/6p1/R3p3/2k4P/5KP1/8/4r3 w - -"]
[ECO "D92"]
[ECOUrl "https://www.chess.com/openings/Grunfeld-Defense-Hungarian-Attack-5...O-O-6.Rc1-dxc4"]
[EndDate "2021.02.28"]
[EndTime "14:54:13"]
[Link "https://www.chess.com/live/game/8259837187"]
[StartTime "13:59:59"]
[Termination "Game drawn by repetition"]
[TimeControl "1500+10"]
[Timezone "UTC"]
[UTCDate "2021.02.28"]
[UTCTime "13:59:59"]
[WhiteElo "1329"]

1. d4 { [%clk 0:25:10] } 1... Nf6 { [%clk 0:25:10] } 2. c4 { [%clk 0:25:13.6] } 2... g6 { [%clk 0:25:16.7] } 3. Nc3 { [%clk 0:25:18.2] } 3... d5 { [%clk 0:25:19.6] } 4. Nf3 { [%clk 0:25:16.5] } 4... Bg7 { [%clk 0:25:23.2] } 5. Bf4 { [%clk 0:25:24.9] } 5... O-O { [%clk 0:24:55.6] } 6. Rc1 { [%clk 0:25:31.6] } 6... dxc4 { [%clk 0:24:27.6] } 7. e3 { [%clk 0:23:06.7] } 7... Be6 { [%clk 0:23:34.3] } 8. Ng5 { [%clk 0:19:14.4] } 8... Bd5 { [%clk 0:23:23.5] } 9. e4 { [%clk 0:17:04.8] } 9... h6 { [%clk 0:23:14.5] } 10. exd5 { [%clk 0:13:01.2] } 10... hxg5 { [%clk 0:23:17.8] } 11. Bxg5 { [%clk 0:13:04.1] } 11... Nxd5 { [%clk 0:23:22.5] } 12. Bxc4 { [%clk 0:12:37.6] } 12... Nb6 { [%clk 0:23:00] } 13. Bb3 { [%clk 0:11:09.6] } 13... Qxd4 { [%clk 0:21:27.4] } 14. Qxd4 { [%clk 0:10:03] } 14... Bxd4 { [%clk 0:21:30.2] } 15. Nb5 { [%clk 0:09:41] } 15... Bxb2 { [%clk 0:20:56.4] } 16. Rc2 { [%clk 0:08:02.3] } 16... Be5 { [%clk 0:20:55.5] } 17. Nxc7 { [%clk 0:07:36.2] } 17... Bxc7 { [%clk 0:20:39] } 18. Rxc7 { [%clk 0:07:45.2] } 18... Nc6 { [%clk 0:20:31.9] } 19. O-O { [%clk 0:07:13.7] } 19... e6 { [%clk 0:18:17.6] } 20. Rxb7 { [%clk 0:04:55.6] } 20... Na5 { [%clk 0:18:13.3] } 21. Rc7 { [%clk 0:04:39.2] } 21... Nxb3 { [%clk 0:18:09.6] } 22. axb3 { [%clk 0:04:48.2] } 22... Rfc8 { [%clk 0:17:58.8] } 23. Rfc1 { [%clk 0:04:55] } 23... Rxc7 { [%clk 0:17:13] } 24. Rxc7 { [%clk 0:05:02.5] } 24... Nd5 { [%clk 0:17:14.2] } 25. Rb7 { [%clk 0:04:44.7] } 25... a6 { [%clk 0:16:38.6] } 26. h4 { [%clk 0:04:07.4] } 26... a5 { [%clk 0:14:03.6] } 27. Bh6 { [%clk 0:04:02.3] } 27... Kh7 { [%clk 0:13:33.9] } 28. Bd2 { [%clk 0:04:03] } 28... Kg8 { [%clk 0:13:30.7] } 29. Kh2 { [%clk 0:02:43.9] } 29... a4 { [%clk 0:13:21.5] } 30. bxa4 { [%clk 0:02:49.2] } 30... Rxa4 { [%clk 0:13:17.7] } 31. Kh3 { [%clk 0:02:20.1] } 31... Ra2 { [%clk 0:12:50] } 32. Be3 { [%clk 0:02:27.6] } 32... Nxe3 { [%clk 0:12:51.7] } 33. fxe3 { [%clk 0:02:35.6] } 33... Ra3 { [%clk 0:12:36.8] } 34. g3 { [%clk 0:02:32.9] } 34... Rxe3 { [%clk 0:12:32.3] } 35. Kg4 { [%clk 0:02:36.9] } 35... Kg7 { [%clk 0:12:26.1] } 36. Kf4 { [%clk 0:02:38.4] } 36... Re1 { [%clk 0:12:18.2] } 37. Ra7 { [%clk 0:02:42.8] } 37... e5+ { [%clk 0:11:28.8] } 38. Kf3 { [%clk 0:02:45.9] } 38... Kf6 { [%clk 0:10:02.8] } 39. Ra6+ { [%clk 0:02:50.8] } 39... Ke7 { [%clk 0:09:43] } 40. Ra7+ { [%clk 0:02:57.9] } 40... Ke6 { [%clk 0:09:36.2] } 41. Ra6+ { [%clk 0:02:58.6] } 41... Kd5 { [%clk 0:09:33.3] } 42. Ra5+ { [%clk 0:03:05.3] } 42... Kc4 { [%clk 0:09:00.1] } 43. Kf2 { [%clk 0:02:56.5] } 43... Re4 { [%clk 0:08:37.7] } 44. Kf3 { [%clk 0:02:57.4] } 44... Re1 { [%clk 0:08:08] } 45. Kf2 { [%clk 0:03:03.8] } 45... Re4 { [%clk 0:08:12] } 46. Kf3 { [%clk 0:03:11.8] } 46... Re1 { [%clk 0:08:17.3] } 1/2-1/2

[Event "Live Chess"]
[Site "Chess.com"]
[Date "2021.02.28"]
[Round "-"]
[White "Kerridge, Simon"]
[Black "Gillespie, David P"]
[Result "0-1"]
[BlackElo "1717"]
[CurrentPosition "5k2/5ppp/8/4n3/1N4P1/1K6/8/8 w - -"]
[ECO "D00"]
[ECOUrl "https://www.chess.com/openings/Queens-Pawn-Opening-Chigorin-Variation-2...Nf6-3.Bf4"]
[EndDate "2021.02.28"]
[EndTime "15:10:39"]
[Link "https://www.chess.com/live/game/8260434481"]
[StartTime "14:10:03"]
[Termination "Rasputin_94 won by resignation"]
[TimeControl "1500+10"]
[Timezone "UTC"]
[UTCDate "2021.02.28"]
[UTCTime "14:10:03"]
[WhiteElo "1392"]

1. d4 { [%clk 0:25:10] } 1... d5 { [%clk 0:25:10] } 2. Nc3 { [%clk 0:25:17.3] } 2... Nf6 { [%clk 0:25:16.1] } 3. Bf4 { [%clk 0:25:23.6] } 3... e6 { [%clk 0:24:27.2] } 4. e3 { [%clk 0:25:28.7] } 4... Bd6 { [%clk 0:24:13.4] } 5. Bd3 { [%clk 0:25:07.9] } 5... Bxf4 { [%clk 0:23:57.8] } 6. exf4 { [%clk 0:25:15] } 6... c5 { [%clk 0:24:05.9] } 7. dxc5 { [%clk 0:24:09.3] } 7... O-O { [%clk 0:23:23.4] } 8. Nf3 { [%clk 0:22:48.2] } 8... Qc7 { [%clk 0:22:47.9] } 9. Ne5 { [%clk 0:21:24.9] } 9... Nbd7 { [%clk 0:21:42.3] } 10. Qe2 { [%clk 0:19:54.1] } 10... Nxc5 { [%clk 0:21:10.9] } 11. h4 { [%clk 0:19:18.4] } 11... Bd7 { [%clk 0:17:34.2] } 12. O-O-O { [%clk 0:17:30.7] } 12... Rac8 { [%clk 0:14:14.8] } 13. Kb1 { [%clk 0:16:37.3] } 13... Bc6 { [%clk 0:12:07.6] } 14. Rhg1 { [%clk 0:14:17] } 14... a6 { [%clk 0:11:08.1] } 15. f3 { [%clk 0:13:04.9] } 15... b5 { [%clk 0:10:53.4] } 16. Qf2 { [%clk 0:12:44.2] } 16... Nxd3 { [%clk 0:09:39.2] } 17. Nxd3 { [%clk 0:12:21.1] } 17... a5 { [%clk 0:09:16] } 18. Rc1 { [%clk 0:07:54.4] } 18... b4 { [%clk 0:06:51] } 19. Ne2 { [%clk 0:07:42.6] } 19... Bb5 { [%clk 0:06:59.2] } 20. Nd4 { [%clk 0:07:47.2] } 20... Bxd3 { [%clk 0:06:36.6] } 21. cxd3 { [%clk 0:07:43.5] } 21... Qa7 { [%clk 0:04:10.1] } 22. b3 { [%clk 0:06:48.1] } 22... a4 { [%clk 0:03:34.4] } 23. bxa4 { [%clk 0:06:32.5] } 23... Qxa4 { [%clk 0:02:55.1] } 24. Nb3 { [%clk 0:06:17.9] } 24... d4 { [%clk 0:02:52.4] } 25. Rxc8 { [%clk 0:05:11.3] } 25... Rxc8 { [%clk 0:02:59] } 26. Qxd4 { [%clk 0:05:19] } 26... Nd5 { [%clk 0:02:53.3] } 27. Qb2 { [%clk 0:03:52.3] } 27... Ra8 { [%clk 0:01:55.1] } 28. Rc1 { [%clk 0:03:43.4] } 28... Nc3+ { [%clk 0:01:51.9] } 29. Kc2 { [%clk 0:03:24.8] } 29... Qxa2 { [%clk 0:00:54.2] } 30. Ra1 { [%clk 0:02:53.4] } 30... Qxb2+ { [%clk 0:00:38.6] } 31. Kxb2 { [%clk 0:03:01.6] } 31... Rxa1 { [%clk 0:00:45.4] } 32. Nxa1 { [%clk 0:02:59.8] } 32... Nd5 { [%clk 0:00:45] } 33. g3 { [%clk 0:02:57.8] } 33... Ne3 { [%clk 0:00:48.4] } 34. Nc2 { [%clk 0:02:41.6] } 34... Nf5 { [%clk 0:00:46.5] } 35. g4 { [%clk 0:02:29.2] } 35... Nxh4 { [%clk 0:00:54.3] } 36. Nd4 { [%clk 0:02:35.9] } 36... Ng2 { [%clk 0:00:47.6] } 37. f5 { [%clk 0:02:30.8] } 37... exf5 { [%clk 0:00:37.8] } 38. Nxf5 { [%clk 0:02:36] } 38... Ne1 { [%clk 0:00:40.7] } 39. Ne7+ { [%clk 0:02:41.6] } 39... Kf8 { [%clk 0:00:47] } 40. Nc6 { [%clk 0:02:49.9] } 40... Nxd3+ { [%clk 0:00:50.6] } 41. Kc2 { [%clk 0:02:57.6] } 41... Ne1+ { [%clk 0:00:55.7] } 42. Kb3 { [%clk 0:02:57.8] } 42... Nxf3 { [%clk 0:01:04.1] } 43. Nxb4 { [%clk 0:03:06.8] } 43... Ne5 { [%clk 0:01:07.9] } 0-1

[Event "Live Chess"]
[Site "Chess.com"]
[Date "2021.02.28"]
[Round "-"]
[White "Gillespie, Gary D"]
[Black "Nield, Christopher"]
[Result "0-1"]
[BlackElo "1434"]
[CurrentPosition "8/1b3pk1/4pp1p/p7/1NP5/1P4KP/P1R2PP1/3r4 w - a6"]
[ECO "D05"]
[ECOUrl "https://www.chess.com/openings/Colle-System-3...e6"]
[EndDate "2021.02.28"]
[EndTime "15:07:43"]
[Link "https://www.chess.com/live/game/8260506227"]
[StartTime "14:14:27"]
[Termination "nieldcfc won by resignation"]
[TimeControl "1500+10"]
[Timezone "UTC"]
[UTCDate "2021.02.28"]
[UTCTime "14:14:27"]
[WhiteElo "1487"]

1. d4 { [%clk 0:25:10] } 1... Nf6 { [%clk 0:25:10] } 2. Nf3 { [%clk 0:25:15.8] } 2... e6 { [%clk 0:25:14.2] } 3. e3 { [%clk 0:25:20.8] } 3... d5 { [%clk 0:25:13.6] } 4. Bd3 { [%clk 0:25:26.7] } 4... c5 { [%clk 0:25:18.5] } 5. b3 { [%clk 0:25:33.5] } 5... Nc6 { [%clk 0:25:14.7] } 6. Bb2 { [%clk 0:25:39.4] } 6... Bd6 { [%clk 0:25:08.2] } 7. O-O { [%clk 0:25:45.2] } 7... O-O { [%clk 0:25:10.5] } 8. Nbd2 { [%clk 0:25:49.4] } 8... Re8 { [%clk 0:25:12.1] } 9. Ne5 { [%clk 0:25:03.7] } 9... Qc7 { [%clk 0:24:40.6] } 10. Nxc6 { [%clk 0:23:55.9] } 10... bxc6 { [%clk 0:24:26.2] } 11. Nf3 { [%clk 0:21:56.6] } 11... cxd4 { [%clk 0:23:43.9] } 12. exd4 { [%clk 0:22:06.5] } 12... Bd7 { [%clk 0:23:16.6] } 13. Re1 { [%clk 0:21:45] } 13... Rac8 { [%clk 0:22:54.1] } 14. Rc1 { [%clk 0:17:03.9] } 14... Qb6 { [%clk 0:22:12] } 15. Ne5 { [%clk 0:17:05.2] } 15... c5 { [%clk 0:21:58.3] } 16. dxc5 { [%clk 0:13:52.1] } 16... Bxc5 { [%clk 0:22:04.5] } 17. Qe2 { [%clk 0:12:01.9] } 17... Qd6 { [%clk 0:19:13.7] } 18. c4 { [%clk 0:08:01.8] } 18... d4 { [%clk 0:18:20.8] } 19. Rcd1 { [%clk 0:07:14.8] } 19... Rcd8 { [%clk 0:17:31] } 20. Bb1 { [%clk 0:05:17.1] } 20... Bc8 { [%clk 0:16:46.9] } 21. Qf3 { [%clk 0:04:37.7] } 21... Qb6 { [%clk 0:15:44.9] } 22. Bd3 { [%clk 0:02:38] } 22... Bb7 { [%clk 0:15:27.1] } 23. Qh3 { [%clk 0:02:23.3] } 23... h6 { [%clk 0:14:21.5] } 24. Qh4 { [%clk 0:01:39.1] } 24... Qd6 { [%clk 0:12:09.5] } 25. Re2 { [%clk 0:01:31.8] } 25... Bb4 { [%clk 0:12:12.3] } 26. Bxd4 { [%clk 0:01:12.9] } 26... Ba6 { [%clk 0:11:25.6] } 27. Bb2 { [%clk 0:00:48.6] } 27... Qc5 { [%clk 0:10:55.2] } 28. h3 { [%clk 0:00:46.1] } 28... Rd6 { [%clk 0:10:51.3] } 29. Bc2 { [%clk 0:00:37.5] } 29... Red8 { [%clk 0:10:39.9] } 30. Nd3 { [%clk 0:00:23.6] } 30... Qf5 { [%clk 0:09:03.4] } 31. Bxf6 { [%clk 0:00:19.5] } 31... Qxf6 { [%clk 0:09:09.1] } 32. Qxf6 { [%clk 0:00:25.5] } 32... gxf6 { [%clk 0:09:18.8] } 33. Nxb4 { [%clk 0:00:30.7] } 33... Rxd1+ { [%clk 0:09:25.5] } 34. Bxd1 { [%clk 0:00:40.6] } 34... Rxd1+ { [%clk 0:09:33.5] } 35. Kh2 { [%clk 0:00:50.2] } 35... Bb7 { [%clk 0:09:28.7] } 36. Kg3 { [%clk 0:00:42] } 36... Kg7 { [%clk 0:09:24.3] } 37. Rc2 { [%clk 0:00:49.3] } 37... a5 { [%clk 0:09:16.4] } 0-1